bitfinex/quotes_SOLUSD_20241016
["timestamp","ask_amount","ask_price","bid_price","bid_amount"]
[1729045386649,20.0,155.49,155.45,11.45642622]
[1729045386862,20.0,155.5,155.45,11.45642622]
[1729045387652,20.0,155.5,155.46,6.4324]
[1729045388764,20.0,155.5,155.44,16.0826]
[1729045388765,6.4313,155.49,155.44,22.5156]
[1729045389566,20.0,155.5,155.43,11.45642622]
[1729045389754,6.4317,155.48,155.43,6.4336]
[1729045391773,6.4313,155.49,155.44,6.4332]
[1729045392268,20.0,155.49,155.45,6.4328]
[1729045392447,20.0,155.49,155.45,17.88922622]
[1729045392648,20.0,155.49,155.46,6.4323]
[1729045393070,26.4309,155.5,155.45,17.88922622]
[1729045393454,26.4309,155.5,155.45,6.4328]
[1729045393760,20.0,155.51,155.43,16.0833]
[1729045393964,6.4318,155.48,155.43,22.517]
[1729045395671,20.0,155.49,155.45,6.4327]
[1729045397572,26.4313,155.49,155.44,6.4332]
[1729045399959,6.4317,155.48,155.44,6.4332]
[1729045400170,6.4317,155.48,155.43,22.5169]
[1729045400372,20.0,155.51,155.42,6.4341]
[1729045400683,20.0,155.51,155.38,15.8697]
[1729045400684,6.433,155.45,155.41,6.4345]
[1729045401378,20.0,155.49,155.41,6.4345]
[1729045401556,6.4336,155.44,155.4,16.0871]
[1729045402373,21.5062,155.47,155.38,17.89222622]
[1729045402554,43.776884,155.46,155.38,6.4358]
[1729045403463,6.434,155.43,155.38,6.4358]
[1729045407686,6.4333,155.45,155.4,6.4346]
[1729045409575,26.4328,155.46,155.41,6.4345]
[1729045409777,20.0,155.46,155.4,11.45642622]
[1729045409982,20.0,155.46,155.42,6.4338]
[1729045413472,20.0,155.46,155.41,22.5202]
[1729045413989,26.4325,155.46,155.41,22.5202]
[1729045414869,20.0,155.46,155.42,6.4338]
[1729045417493,26.4326,155.46,155.42,6.4338]
[1729045418698,20.0,155.46,155.42,6.4338]
[1729045420605,15.2977,155.47,155.42,6.4338]
[1729045423794,21.7298,155.47,155.42,6.4338]
[1729045426005,6.4329,155.45,155.41,16.0857]
[1729045426208,6.4329,155.45,155.41,22.5202]
[1729045427286,21.7299,155.47,155.42,6.434]
[1729045429495,21.7299,155.47,155.43,6.4337]
[1729045429801,6.4322,155.47,155.43,6.4337]
[1729045432708,6.6671356,155.5,155.42,6.434]
[1729045433004,6.6671356,155.5,155.41,27.54212622]
[1729045433005,6.4331,155.45,155.41,27.54212622]
[1729045433306,6.4326,155.46,155.41,33.97652622]
[1729045436393,6.4326,155.46,155.41,22.5201]
[1729045437608,6.4332,155.45,155.41,16.0857]
[1729045440207,6.4338,155.43,155.38,22.5248]
[1729045440410,22.3326,155.45,155.4,6.4347]
[1729045440590,6.4325,155.46,155.4,16.0866]
[1729045440905,6.4325,155.46,155.41,6.4345]
[1729045441585,6.4329,155.45,155.4,16.0866]
[1729045441788,6.4329,155.45,155.4,22.5214]
[1729045442089,20.0,155.45,155.41,6.4344]
[1729045442287,6.4325,155.46,155.41,17.89082622]
[1729045445110,6.4329,155.45,155.41,6.4344]
[1729045446198,62.41449573,155.49,155.41,6.4344]
[1729045446397,6.4326,155.46,155.41,6.4344]
[1729045446593,20.0,155.45,155.41,6.4344]
[1729045454520,6.433,155.45,155.41,6.4344]
[1729045456700,6.4337,155.44,155.4,16.0866]
[1729045458094,6.4337,155.44,155.39,6.4353]
[1729045459009,36.1795,155.43,155.37,16.0903]
[1729045459207,20.0,155.41,155.37,16.0903]
[1729045460827,12.4738,155.45,155.38,11.45642622]
[1729045461012,20.0,155.44,155.38,11.45642622]
[1729045462222,20.0,155.44,155.34,16.7182]
[1729045462223,20.0,155.46,155.4,27.54362622]
[1729045462398,22.84254435,155.47,155.42,6.4341]
[1729045462604,16.1795,155.47,155.42,6.4341]
[1729045463508,22.6116,155.47,155.42,6.4341]
[1729045463927,26.4327,155.46,155.41,6.4344]
[1729045464498,20.0,155.46,155.4,27.54362622]
[1729045464705,23.776884,155.43,155.36,16.0906]
[1729045465020,6.4354,155.39,155.34,6.4374]
[1729045466217,20.0,155.38,155.34,6.4374]
[1729045466609,26.4361,155.38,155.33,22.5325]
[1729045477236,20.0,155.39,155.35,6.437]
[1729045480745,20.0,155.4,155.35,16.0918]
[1729045480936,20.0,155.4,155.37,6.4362]
[1729045481239,20.0,155.4,155.37,22.5261]
[1729045482020,20.0,155.41,155.38,6.4358]
[1729045483338,20.0,155.41,155.37,22.526]
[1729045484942,20.0,155.4,155.36,6.4363]
[1729045486135,20.0,155.4,155.37,6.4361]
[1729045488335,20.0,155.41,155.38,6.4357]
[1729045488548,6.4355,155.39,155.35,6.437]
[1729045488841,20.0,155.38,155.34,16.0933]
[1729045489051,26.4361,155.38,155.33,6.4378]
[1729045489754,20.0,155.4,155.33,6.4378]
[1729045489934,6.4362,155.37,155.33,6.4378]
[1729045495647,20.0,155.38,155.33,16.0938]
[1729045497146,20.0,155.39,155.35,6.4367]
[1729045500262,20.0,155.37,155.33,22.5314]
[1729045500762,20.0,155.37,155.34,6.4374]
[1729045500942,20.0,155.39,155.36,6.4366]
[1729045501146,20.0,155.39,155.34,6.437]
[1729045501666,6.4358,155.38,155.34,6.437]
[1729045501838,20.0,155.37,155.34,6.437]
[1729045502364,26.4354,155.39,155.34,6.437]
[1729045503056,30.212984,155.38,155.33,22.5316]
[1729045503355,20.0,155.37,155.33,22.5316]
[1729045504154,20.0,155.35,155.31,6.4384]
[1729045504364,26.4372,155.35,155.3,22.5366]
[1729045505642,6.4367,155.36,155.31,6.4386]
[1729045505845,20.0,155.35,155.32,6.4379]
[1729045506068,20.0,155.35,155.33,6.4378]
[1729045506661,20.0,155.37,155.33,6.4378]
[1729045507140,26.4362,155.37,155.33,6.4378]
[1729045507651,20.0,155.37,155.33,6.4378]
[1729045508187,26.4363,155.37,155.33,6.4378]
[1729045508469,20.0,155.39,155.35,6.4369]
[1729045508639,20.0,155.39,155.33,11.45642622]
[1729045508840,6.4355,155.39,155.34,6.4373]
[1729045510058,20.0,155.38,155.34,6.4373]
[1729045512562,6.4363,155.37,155.33,6.4378]
[1729045512949,6.4359,155.38,155.33,6.4378]
[1729045513251,20.0,155.37,155.33,6.4378]
[1729045514162,20.0,155.37,155.34,6.4373]
[1729045514472,20.0,155.39,155.35,6.4369]
[1729045514762,20.0,155.39,155.36,6.4366]
[1729045515266,26.4346,155.41,155.36,6.4366]
[1729045517867,20.0,155.41,155.36,6.4366]
[1729045518063,20.0,155.39,155.36,6.4366]
[1729045519569,15.3668,155.44,155.35,11.45642622]
[1729045519749,21.8001,155.44,155.39,6.435]
[1729045521347,20.0,155.43,155.39,6.435]
[1729045522671,20.0,155.41,155.38,22.525]
[1729045522878,20.0,155.41,155.38,16.0892]
[1729045523666,6.4342,155.42,155.35,11.45642622]
[1729045523667,20.0,155.39,155.35,16.0925]
[1729045524450,20.0,155.39,155.35,22.5294]
[1729045524779,20.0,155.38,155.35,16.0925]
[1729045526283,26.436,155.38,155.33,6.4377]
[1729045526572,20.0,155.36,155.32,6.4382]
[1729045527175,26.4367,155.36,155.31,33.99102622]
[1729045528546,26.4367,155.36,155.31,22.5346]
[1729045530375,20.0,155.36,155.31,16.0959]
[1729045530676,20.0,155.36,155.33,6.4379]
[1729045530882,20.0,155.36,155.32,6.4382]
[1729045531562,6.4366,155.36,155.32,6.4382]
[1729045532062,6.4366,155.36,155.31,22.5346]
[1729045533388,20.0,155.37,155.29,6.4393]
[1729045533389,6.4374,155.34,155.29,6.4393]
[1729045533680,6.4374,155.34,155.3,6.4391]
[1729045534186,20.0,155.34,155.3,6.4391]
[1729045538976,20.0,155.34,155.28,27.55592622]
[1729045539175,20.0,155.35,155.31,6.4386]
[1729045542292,6.437,155.35,155.31,6.4386]
[1729045542465,20.0,155.34,155.31,6.4386]
[1729045543867,6.437,155.35,155.31,6.4386]
[1729045544277,20.0,155.34,155.31,6.4386]
[1729045545587,20.0,155.34,155.28,27.55592622]
[1729045545895,6.4382,155.33,155.28,16.0995]
[1729045546067,26.4385,155.32,155.28,16.0995]
[1729045547599,12.5006,155.36,155.31,6.4386]
[1729045547781,20.0,155.35,155.3,16.0973]
[1729045547971,6.0636,155.36,155.3,22.5363]
[1729045547972,20.0,155.33,155.3,22.5363]
[1729045548775,26.4371,155.35,155.3,22.5363]
[1729045551794,26.4379,155.33,155.28,6.4396]
[1729045551985,20.0,155.33,155.29,11.45642622]
[1729045552297,20.0,155.36,155.29,27.55472622]
[1729045552496,26.4366,155.36,155.32,6.4383]
[1729045553584,15.3668,155.38,155.34,6.4373]
[1729045553585,20.0,155.38,155.34,6.4373]
[1729045553773,20.0,155.39,155.32,16.0957]
[1729045553969,20.0,155.35,155.32,22.5339]
[1729045555090,20.0,155.35,155.32,16.0957]
[1729045555593,20.0,155.35,155.29,16.0986]
[1729045555895,26.4383,155.32,155.28,17.89622622]
[1729045556096,20.0,155.32,155.28,17.89622622]
[1729045556997,6.4379,155.33,155.28,6.4399]
[1729045557297,20.0,155.32,155.28,6.4399]
[1729045557503,26.4385,155.32,155.27,6.4401]
[1729045562801,26.4371,155.35,155.3,6.4389]
[1729045563003,26.4371,155.35,155.28,27.55552622]
[1729045563004,20.0,155.35,155.28,27.55552622]
[1729045563204,20.0,155.31,155.28,27.55552622]
[1729045563499,6.4377,155.34,155.28,27.55552622]
[1729045563695,20.0,155.33,155.3,6.4391]
[1729045563906,6.4371,155.35,155.3,6.4391]
[1729045565182,20.0,155.34,155.3,6.4391]
[1729045566903,6.4375,155.34,155.3,6.4391]
[1729045567199,20.0,155.33,155.3,6.4391]
[1729045569401,30.214284,155.35,155.3,6.4391]
[1729045569602,20.0,155.34,155.3,6.4391]
[1729045570709,20.0,155.34,155.32,6.4381]
[1729045571015,26.4367,155.36,155.32,6.4381]
[1729045572315,20.0,155.37,155.34,6.4374]
[1729045572492,26.4355,155.39,155.34,6.4374]
[1729045572689,20.0,155.39,155.35,6.4369]
[1729045572884,12.4986,155.4,155.35,6.4369]
[1729045574218,20.0,155.39,155.35,6.4369]
[1729045575195,20.0,155.4,155.36,6.4365]
[1729045577313,20.0,155.4,155.39,6.4354]
[1729045577619,15.32062701,155.44,155.37,16.0899]
[1729045577620,26.4338,155.43,155.38,17.89222622]
[1729045577917,26.4338,155.43,155.38,6.4358]
[1729045578299,20.0,155.39,155.36,17.89292622]
[1729045579503,20.0,155.39,155.35,6.437]
[1729045579912,6.4359,155.38,155.33,6.4377]
[1729045580121,20.0,155.38,155.34,6.4374]
[1729045580618,20.0,155.38,155.34,17.89382622]
[1729045580828,20.0,155.38,155.35,6.437]
[1729045581143,20.0,155.39,155.35,6.437]
[1729045583813,26.4355,155.39,155.34,17.89382622]
[1729045584622,26.4355,155.39,155.34,6.4374]
[1729045584819,20.0,155.38,155.33,16.0941]
[1729045584996,20.0,155.36,155.33,16.0941]
[1729045586008,20.0,155.36,155.33,22.532]
[1729045589721,20.0,155.36,155.33,16.0941]
[1729045590030,20.0,155.36,155.28,11.45642622]
[1729045590204,6.4381,155.33,155.28,17.89632622]
[1729045590404,23.776884,155.35,155.28,11.45642622]
[1729045590626,20.0,155.33,155.29,6.4393]
[1729045591325,39.560484,155.35,155.27,22.5408]
[1729045591634,20.0,155.3,155.27,22.5408]
[1729045592614,20.0,155.31,155.27,22.5408]
[1729045594037,20.0,155.3,155.27,16.1008]
[1729045594933,20.0,155.3,155.27,22.5411]
[1729045595436,20.0,155.31,155.27,22.5411]
[1729045596826,20.0,155.3,155.27,16.1008]
[1729045597141,20.0,155.3,155.27,22.5411]
[1729045599613,20.0,155.3,155.27,16.1008]
[1729045601625,20.0,155.3,155.26,6.4407]
[1729045602145,6.4396,155.29,155.25,11.45642622]
[1729045602452,26.4388,155.31,155.25,17.89722622]
[1729045603050,26.4388,155.31,155.26,6.4406]
[1729045603530,20.0,155.29,155.24,22.5454]
[1729045604130,20.0,155.29,155.25,6.441]
[1729045604422,26.4387,155.31,155.26,6.4406]
[1729045604827,26.4387,155.31,155.24,16.1039]
[1729045605051,26.4387,155.31,155.25,6.4411]
[1729045605636,20.0,155.31,155.25,6.4411]
[1729045605828,20.0,155.29,155.25,6.4411]
[1729045607847,6.1276,155.27,155.17,0.6300647]
[1729045608046,50.220984,155.18,155.17,0.6300647]
[1729045608252,20.0,155.17,155.1,6.0371]
[1729045608451,26.4445,155.17,155.11,6.447]
[1729045608747,26.4441,155.19,155.12,6.4465]
[1729045608945,26.4441,155.18,155.12,6.4465]
[1729045609255,26.4441,155.18,155.11,6.447]
[1729045609256,20.0,155.16,155.11,6.447]
[1729045609428,20.0,155.16,155.09,16.1186]
[1729045609429,26.4449,155.16,155.1,17.90382622]
[1729045610052,20.0,155.16,155.1,11.45642622]
[1729045610243,20.0,155.17,155.12,6.4465]
[1729045610540,20.0,155.17,155.12,11.45642622]
[1729045610745,20.0,155.17,155.13,6.4461]
[1729045610942,43.776884,155.2,155.15,6.4453]
[1729045611850,43.776884,155.2,155.14,11.45642622]
[1729045612058,20.0,155.22,155.16,11.45642622]
[1729045612428,20.0,155.22,155.18,17.90032622]
[1729045613933,20.0,155.22,155.15,17.96037434]
[1729045614128,6.441,155.26,155.18,16.1099]
[1729045614529,6.70389014,155.27,155.2,6.4432]
[1729045614738,6.4412,155.25,155.2,6.4432]
[1729045615656,20.0,155.26,155.16,15.3407]
[1729045615835,20.0,155.24,155.16,15.3407]
[1729045616745,20.0,155.22,155.18,6.444]
[1729045618934,20.0,155.24,155.16,49.41247434]
[1729045619141,26.4418,155.24,155.19,6.4435]
[1729045620445,26.4418,155.24,155.16,33.30107434]
[1729045620446,20.0,155.24,155.16,33.30107434]
[1729045620637,6.70389014,155.27,155.16,33.30107434]
[1729045620638,20.0,155.26,155.22,6.4423]
[1729045621953,6.4408,155.26,155.21,6.4425]
[1729045622141,20.0,155.25,155.21,6.4425]
[1729045624164,20.0,155.27,155.19,16.109]
[1729045624354,20.0,155.25,155.18,6.4441]
[1729045624553,20.0,155.22,155.18,6.4441]
[1729045625067,23.776884,155.24,155.16,16.1122]
[1729045625365,20.0,155.19,155.16,16.1122]
[1729045628163,26.4438,155.19,155.14,6.4457]
[1729045630773,26.4438,155.19,155.12,16.1156]
[1729045631270,26.4438,155.19,155.14,6.4457]
[1729045633359,15.0218,155.21,155.14,6.4457]
[1729045633360,20.0,155.2,155.14,16.1136]
[1729045634353,6.1187,155.22,155.17,6.4444]
[1729045634354,6.4425,155.22,155.17,6.4444]
[1729045635270,6.4429,155.21,155.16,6.4449]
[1729045635775,20.0,155.2,155.16,6.4449]
[1729045644579,6.4446,155.17,155.13,6.4458]
[1729045645079,6.4441,155.18,155.13,6.4458]
[1729045645379,20.0,155.17,155.13,6.4458]
[1729045647159,6.4452,155.16,155.11,22.5643]
[1729045647362,20.0,155.15,155.11,22.5643]
[1729045648185,6.4454,155.15,155.11,16.1173]
[1729045650261,6.4454,155.15,155.08,22.8256]
[1729045650262,20.0,155.18,155.08,32.6625]
[1729045650467,23.776884,155.17,155.08,32.6625]
[1729045650783,23.776884,155.15,155.11,6.4469]
[1729045650961,30.222284,155.15,155.1,6.4473]
[1729045651984,20.0,155.16,155.1,6.4473]
[1729045651985,26.445,155.16,155.11,6.4469]
[1729045652485,30.222384,155.15,155.1,6.4473]
[1729045652779,6.4458,155.14,155.1,6.4473]
[1729045652988,6.4458,155.14,155.09,17.95387099]
[1729045653573,35.4928,155.13,155.07,6.4487]
[1729045653769,30.223484,155.12,155.08,6.4482]
[1729045654188,41.9391,155.13,155.08,6.4482]
[1729045655594,41.9391,155.13,155.07,16.121]
[1729045655595,30.223484,155.12,155.07,16.121]
[1729045655771,6.4471,155.11,155.07,16.121]
[1729045656087,20.0,155.1,155.07,16.121]
[1729045657468,20.0,155.11,155.07,16.121]
[1729045657780,20.0,155.11,155.08,6.4481]
[1729045659464,43.776884,155.14,155.1,11.50617099]
[1729045659874,43.776884,155.14,155.07,34.10059113]
[1729045660568,50.222684,155.14,155.09,6.4477]
[1729045662381,20.0,155.15,155.12,6.4466]
[1729045662573,20.0,155.16,155.12,6.4466]
[1729045662992,6.4437,155.19,155.14,6.4456]
[1729045664582,20.0,155.17,155.14,6.4456]
[1729045665295,76.69821352,155.22,155.15,17.97959113]
[1729045665503,76.69821352,155.22,155.13,17.97959113]
[1729045665872,6.4432,155.21,155.13,34.09469113]
[1729045666103,15.4489,155.24,155.19,6.4435]
[1729045666275,6.4425,155.22,155.18,16.11]
[1729045666470,15.4489,155.24,155.18,16.11]
[1729045666777,76.5128,155.27,155.18,16.11]
[1729045666778,6.4412,155.25,155.2,6.4431]
[1729045666979,19.64573778,155.27,155.21,6.4426]
[1729045667403,6.4408,155.26,155.21,6.4426]
[1729045667701,6.4408,155.26,155.21,6.4427]
[1729045668181,6.4412,155.25,155.2,16.1073]
[1729045668388,26.4416,155.24,155.2,16.1073]
[1729045669296,20.0,155.24,155.21,6.4427]
[1729045669490,19.64573778,155.27,155.2,16.1073]
[1729045669491,20.0,155.26,155.2,16.1073]
[1729045669803,21.8889,155.28,155.21,17.97959113]
[1729045670001,21.8889,155.28,155.22,6.4424]
[1729045670303,15.4489,155.28,155.24,6.4415]
[1729045670798,20.0,155.27,155.24,6.4415]
[1729045670983,13.21164272,155.31,155.25,6.4411]
[1729045670984,20.0,155.3,155.25,6.4411]
[1729045671176,13.13784272,155.31,155.26,6.4406]
[1729045671394,6.439,155.31,155.26,6.4406]
[1729045672801,6.439,155.31,155.23,16.105]
[1729045672802,70.0,155.31,155.21,17.97959113]
[1729045672977,20.0,155.25,155.21,6.4428]
[1729045673671,20.0,155.27,155.21,6.4428]
[1729045675477,43.776884,155.28,155.19,40.59229113]
[1729045675676,6.4412,155.25,155.2,6.4432]
[1729045676003,43.776884,155.28,155.19,22.6127]
[1729045676004,6.4416,155.24,155.19,22.552]
[1729045676206,20.0,155.23,155.19,22.552]
[1729045676379,26.4422,155.23,155.18,6.4441]
[1729045677198,26.4422,155.23,155.17,6.4445]
[1729045677590,26.4422,155.23,155.18,6.444]
[1729045677985,26.4422,155.23,155.17,6.4444]
[1729045678180,6.4425,155.22,155.17,6.4444]
[1729045678380,20.0,155.21,155.17,6.4444]
[1729045681890,26.4419,155.24,155.18,6.444]
[1729045682784,6.69699292,155.25,155.18,16.1093]
[1729045682997,6.4412,155.26,155.21,6.4428]
[1729045684392,20.0,155.25,155.21,6.4428]
[1729045686008,16.5219,155.29,155.22,6.4424]
[1729045686009,26.4404,155.27,155.22,6.4424]
[1729045686714,20.0,155.28,155.22,16.1053]
[1729045687502,22.9618,155.29,155.24,6.4412]
[1729045688785,20.0,155.28,155.24,6.4412]
[1729045689603,20.0,155.28,155.23,6.4419]
[1729045689786,6.4413,155.25,155.2,6.4429]
[1729045690414,6.4417,155.24,155.19,6.4436]
[1729045691807,6.4421,155.23,155.18,22.5533]
[1729045694304,6.4416,155.24,155.19,6.4437]
[1729045694506,20.0,155.23,155.19,6.4437]
[1729045694810,6.4425,155.22,155.18,16.1093]
[1729045697496,6.4429,155.21,155.16,6.4449]
[1729045699315,6.4433,155.2,155.15,22.558]
[1729045699519,39.532684,155.22,155.15,16.113]
[1729045699691,26.4429,155.21,155.16,6.4448]
[1729045700309,20.0,155.21,155.15,16.113]
[1729045700522,6.4433,155.2,155.15,22.5583]
[1729045700712,6.4441,155.18,155.12,16.1162]
[1729045701017,20.0,155.17,155.12,16.1162]
[1729045701517,20.0,155.17,155.13,6.4458]
[1729045703730,23.776884,155.2,155.16,6.4449]
[1729045703922,20.0,155.19,155.16,6.4449]
[1729045704222,20.0,155.19,155.15,16.1134]
[1729045704398,20.0,155.19,155.15,22.5587]
[1729045706003,20.0,155.21,155.16,6.4446]
[1729045706404,26.4428,155.21,155.16,6.4446]
[1729045707206,20.0,155.21,155.18,6.444]
[1729045708311,26.4431,155.21,155.15,16.1134]
[1729045709537,26.4431,155.21,155.16,6.4448]
[1729045709837,6.432,155.25,155.17,16.1106]
[1729045710009,20.0,155.25,155.21,6.4428]
[1729045710534,6.4412,155.25,155.19,16.1084]
[1729045710702,6.4412,155.25,155.2,6.4432]
[1729045711597,15.6041,155.26,155.22,6.4424]
[1729045711833,20.0,155.25,155.22,6.4424]
[1729045712322,20.0,155.25,155.19,34.08799113]
[1729045712529,20.0,155.25,155.21,6.4428]
[1729045713118,22.31335611,155.29,155.22,16.1061]
[1729045713313,6.4388,155.31,155.26,6.4407]
[1729045714737,20.0,155.3,155.26,6.4407]
[1729045715919,6.4388,155.31,155.26,6.4407]
[1729045716931,20.0,155.3,155.26,6.4407]
[1729045722741,20.0,155.31,155.27,6.4403]
[1729045724120,20.0,155.32,155.28,6.4399]
[1729045725035,26.4383,155.32,155.28,6.4399]
[1729045726630,20.0,155.32,155.26,16.101]
[1729045727919,26.4384,155.32,155.27,6.44]
[1729045728138,26.4384,155.32,155.26,16.101]
[1729045728139,26.4384,155.32,155.28,6.4399]
[1729045729933,26.4384,155.32,155.28,17.91897517]
[1729045733850,26.4384,155.32,155.28,11.47907517]
[1729045735027,20.0,155.32,155.29,6.4394]
[1729045735232,13.14789728,155.36,155.31,6.4387]
[1729045735447,6.437,155.36,155.31,6.4387]
[1729045735959,21.7794,155.37,155.29,16.0988]
[1729045736127,6.4379,155.33,155.29,22.5383]
[1729045737953,6.4387,155.31,155.26,34.02147517]
[1729045739023,23.776884,155.32,155.26,27.58077517]
[1729045739238,30.215284,155.32,155.27,6.4402]
[1729045742756,20.0,155.31,155.27,6.4402]
[1729045744870,37.8706,155.37,155.3,11.47907517]
[1729045744871,21.7794,155.37,155.3,11.47907517]
[1729045745042,6.4371,155.35,155.3,17.91807517]
[1729045746751,20.0,155.34,155.3,17.91807517]
[1729045748858,20.0,155.34,155.3,6.439]
[1729045749253,6.4375,155.34,155.3,6.439]
[1729045750138,6.4393,155.3,155.25,22.5434]
[1729045750458,23.776884,155.32,155.25,27.58167517]
[1729045750647,23.776884,155.32,155.26,6.4407]
[1729045750648,26.4388,155.31,155.26,6.4407]
[1729045751050,20.0,155.31,155.26,6.4407]
[1729045751239,6.4391,155.3,155.26,6.4407]
[1729045752151,20.0,155.31,155.28,6.4399]
[1729045752349,20.0,155.32,155.28,6.4399]
[1729045752566,6.4375,155.34,155.29,17.91837517]
[1729045753960,20.0,155.33,155.29,17.91837517]
[1729045758365,6.4387,155.31,155.27,34.01917517]
[1729045758965,26.4383,155.32,155.27,34.01917517]
[1729045761845,26.4383,155.32,155.28,6.4399]
[1729045763768,26.4383,155.32,155.27,22.5404]
[1729045764860,30.215784,155.31,155.27,22.5404]
[1729045766147,30.215784,155.31,155.27,16.1001]
[1729045766350,6.4391,155.3,155.25,6.4408]
[1729045766861,6.4391,155.3,155.24,27.58257517]
[1729045767081,6.4391,155.3,155.26,6.4406]
[1729045768978,73.776884,155.29,155.21,16.1069]
[1729045769157,20.0,155.26,155.22,6.4423]
[1729045769356,26.4408,155.26,155.22,6.4423]
[1729045769670,26.4408,155.26,155.21,16.1069]
[1729045769869,26.4408,155.26,155.21,22.5495]
[1729045770251,20.0,155.24,155.17,6.4128]
[1729045770479,26.4419,155.24,155.19,6.4434]
[1729045771057,20.0,155.24,155.18,11.47907517]
[1729045771360,20.0,155.28,155.18,11.47907517]
[1729045771562,6.4416,155.24,155.19,6.4436]
[1729045772069,6.4421,155.23,155.19,6.4436]
[1729045772670,6.4421,155.23,155.18,11.47907517]
[1729045772876,6.4421,155.23,155.18,6.4441]
[1729045773657,43.776884,155.23,155.18,6.4441]
[1729045774473,43.776884,155.23,155.19,6.4436]
[1729045778083,50.218884,155.23,155.19,6.4436]
[1729045779570,16.70940305,155.22,155.19,6.4436]
[1729045779770,50.218884,155.23,155.19,6.4436]
[1729045780491,30.218884,155.23,155.19,6.4436]
[1729045785260,23.776884,155.23,155.17,22.5547]
[1729045785467,30.219784,155.21,155.17,22.5547]
[1729045785687,30.219784,155.21,155.17,16.1105]
[1729045785872,26.4433,155.2,155.17,16.1105]
[1729045788774,23.776884,155.19,155.1,0.1]
[1729045788979,23.776884,155.19,155.08,47.6223]
[1729045788980,30.220884,155.19,155.14,22.56]
[1729045789182,23.776884,155.17,155.14,16.1143]
[1729045792271,20.0,155.16,155.08,15.3824]
[1729045792493,23.776884,155.15,155.11,6.4466]
[1729045792898,20.0,155.16,155.1,11.47907517]
[1729045793078,20.0,155.16,155.13,22.5616]
[1729045800496,20.0,155.16,155.02,0.6300647]
[1729045800497,6.4488,155.07,155.02,0.6300647]
[1729045800797,26.4499,155.04,154.95,22.0055]
[1729045800979,23.776884,155.01,154.97,16.1318]
[1729045801179,20.0,155.02,154.99,6.452]
[1729045801481,12.6552,155.06,154.98,11.47907517]
[1729045801482,20.0,155.04,154.98,11.47907517]
[1729045801685,20.0,155.04,154.95,6.6231]
[1729045801686,20.0,155.04,154.96,11.47907517]
[1729045801873,20.0,155.04,154.99,6.4519]
[1729045802491,15.97403186,155.04,154.99,6.4519]
[1729045807987,20.0,155.03,154.98,6.4524]
[1729045808996,20.0,155.06,155.0,11.47907517]
[1729045809182,20.0,155.06,155.02,6.4507]
[1729045810795,6.4479,155.09,155.02,11.47907517]
[1729045810980,6.71241779,155.07,155.04,6.4499]
[1729045811180,23.776884,155.08,155.04,6.4499]
[1729045811497,6.4479,155.09,155.04,6.4499]
[1729045812001,6.4479,155.09,155.03,6.4503]
[1729045812298,20.0,155.08,155.03,6.4503]
[1729045814278,20.0,155.08,155.02,11.47907517]
[1729045814606,6.4474,155.1,155.05,6.4493]
[1729045815578,6.4482,155.09,155.04,16.1245]